bitfinex-derivatives/quotes_ETHF0:USTF0_20250726
["timestamp","ask_amount","ask_price","bid_price","bid_amount"]
[1753550092480,1.7672,3728.4,3728.3,0.53628]
[1753550092680,1.7672,3728.4,3728.3,1.28038]
[1753550092980,1.7672,3728.4,3728.3,1.47838]
[1753550093583,2.30346,3728.4,3728.3,0.9421]
[1753550094179,1.7672,3728.4,3728.3,1.47838]
[1753550094387,2.30346,3728.4,3728.3,1.47838]
[1753550094586,1.7672,3728.4,3728.3,1.47838]
[1753550094979,2.30346,3728.4,3728.3,1.47838]
[1753550095178,2.30346,3728.4,3728.3,0.9421]
[1753550095581,2.30346,3728.4,3728.3,1.47838]
[1753550095886,1.7672,3728.4,3728.3,1.47838]
[1753550096081,1.7672,3728.4,3728.3,1.77028]
[1753550096387,0.3105,3728.6,3728.5,1.77025]
[1753550096979,0.6229,3728.6,3728.5,1.77025]
[1753550098590,0.8258,3728.6,3728.5,1.77025]
[1753550098786,1.024,3728.6,3728.5,1.77025]
[1753550098987,1.769,3728.6,3728.5,1.77025]
[1753550100396,1.024,3728.6,3728.5,1.77025]
[1753550101195,1.769,3728.6,3728.5,1.47835]
[1753550101882,1.769,3728.6,3728.5,1.77235]
[1753550102082,0.4385,3728.5,3728.3,0.4545]
[1753550102283,1.0467,3728.2,3728.1,0.7534]
[1753550102484,1.7514,3728.2,3728.1,1.48371]
[1753550103488,2.28769,3728.2,3728.1,1.48371]
[1753550103893,1.7514,3728.2,3728.1,1.48371]
[1753550104490,1.7514,3728.2,3728.1,1.77771]
[1753550105893,1.0064,3728.2,3728.1,1.77771]
[1753550109197,1.4458,3728.2,3728.1,1.77771]
[1753550110497,2.28859,3728.2,3728.1,1.48371]
[1753550110699,1.7523,3728.1,3728.0,0.2989]
[1753550110893,1.7523,3728.1,3728.0,0.9474]
[1753550111893,2.28861,3728.1,3728.0,0.9474]
[1753550112695,1.54546,3727.7,3727.6,0.4929]
[1753550112998,1.54546,3727.7,3727.6,13.81728]
[1753550113198,2.28866,3727.7,3727.6,13.7354]
[1753550114293,2.28866,3727.7,3727.6,0.9474]
[1753550115197,2.28866,3727.7,3727.6,0.7534]
[1753550116994,4.54858,3728.1,3727.2,0.7534]
[1753550116995,2.28872,3727.3,3727.2,0.7534]
[1753550117498,2.28872,3727.3,3727.2,0.9474]
[1753550118504,2.28872,3727.3,3727.2,1.2414]
[1753550119805,1.7523,3727.3,3727.2,1.77784]
[1753550120000,0.2039,3727.5,3727.0,3.2078]
[1753550120205,1.0064,3727.5,3727.4,1.77779]
[1753550120698,1.4458,3727.5,3727.4,1.77779]
[1753550120906,1.0064,3727.5,3727.4,1.77779]
[1753550121501,1.4458,3727.5,3727.4,1.77779]
[1753550121701,0.3023,3727.5,3727.4,1.77779]
[1753550124206,0.6061,3727.5,3727.4,1.77779]
[1753550124902,1.0064,3727.5,3727.4,1.77779]
[1753550125112,1.7517,3727.5,3727.4,1.77779]
[1753550125497,1.4452,3727.5,3727.4,4.98559]
[1753550125706,1.4452,3727.5,3727.4,1.77779]
[1753550126005,1.4452,3727.5,3727.4,4.98559]
[1753550126904,1.4452,3727.5,3727.4,1.77779]
[1753550129207,1.4452,3727.5,3727.4,4.98559]
[1753550129410,1.4452,3727.5,3727.4,1.77779]
[1753550129609,1.4452,3727.5,3727.4,4.98559]
[1753550130708,1.4452,3727.5,3727.4,1.77779]
[1753550131005,1.7446,3727.5,3727.4,1.77779]
[1753550131311,2.28099,3727.5,3727.4,1.48381]
[1753550131507,1.7446,3727.5,3727.4,1.48381]
[1753550132209,1.7446,3727.5,3727.4,4.97971]
[1753550133707,1.7446,3727.5,3727.4,1.77191]
[1753550133908,1.7446,3727.5,3727.4,4.97971]
[1753550134413,1.7446,3727.5,3727.4,1.77191]
[1753550135908,1.7446,3727.5,3727.4,1.2355]
[1753550135909,2.28099,3727.5,3727.4,1.2355]
[1753550136113,0.6926,3727.1,3727.0,4.55436]
[1753550136308,1.7232,3727.1,3727.0,4.55436]
[1753550136508,1.7232,3727.1,3727.0,4.26626]
[1753550136708,1.7232,3727.1,3727.0,4.1605]
[1753550136907,1.7232,3727.1,3727.0,3.9552]
[1753550137306,2.25965,3727.1,3727.0,3.9552]
[1753550137907,1.7232,3727.1,3727.0,4.49166]
[1753550138413,1.7232,3727.1,3727.0,3.9552]
[1753550138414,2.25965,3727.1,3727.0,3.9552]
[1753550138608,1.7232,3727.1,3727.0,3.9552]
[1753550138809,1.7232,3727.1,3726.7,13.0761]
[1753550139110,1.7232,3726.8,3726.7,14.27721]
[1753550140711,1.7232,3726.8,3726.7,13.5354]
[1753550140912,1.7232,3726.8,3726.7,12.788]
[1753550141110,1.7232,3726.8,3726.7,13.32451]
[1753550141312,1.7232,3726.8,3726.7,14.07191]
[1753550141612,1.7232,3726.8,3726.7,13.5354]
[1753550141809,1.7232,3726.8,3726.7,14.07191]
[1753550142010,1.7232,3726.8,3726.7,14.56531]
[1753550143711,1.4238,3726.8,3726.7,14.56531]
[1753550148620,1.4238,3727.2,3727.1,1.77725]
[1753550148816,1.4238,3727.2,3727.1,4.98505]
[1753550149012,0.591,3727.5,3727.4,1.48911]
[1753550149214,0.3017,3727.5,3727.4,1.77721]
[1753550149915,0.591,3727.5,3727.4,1.77721]
[1753550150111,0.9842,3727.5,3727.4,1.77721]
[1753550150316,1.4238,3727.5,3727.4,1.77721]
[1753550150516,1.7232,3727.5,3727.4,1.77721]
[1753550152622,0.9842,3727.5,3727.4,1.77721]
[1753550154221,1.4238,3727.5,3727.4,1.77721]
[1753550155614,0.9842,3727.5,3727.4,1.77721]
[1753550156525,1.4238,3727.5,3727.4,1.77721]
[1753550158140,0.9842,3727.5,3727.4,1.77721]
[1753550159842,1.4238,3727.5,3727.4,1.77721]
[1753550160740,0.9542,3727.8,3727.7,0.53636]
[1753550160947,1.1642,3727.8,3727.7,4.97596]
[1753550161444,1.7763,3727.8,3727.7,4.97596]
[1753550163641,1.7763,3727.8,3727.7,4.4396]
[1753550163847,1.7763,3727.8,3727.7,4.68256]
[1753550164046,1.7763,3727.8,3727.7,4.04376]
[1753550164349,1.7763,3727.8,3727.7,3.74416]
[1753550164946,2.31265,3727.8,3727.7,3.74416]
[1753550165249,1.7763,3727.8,3727.7,3.74416]
[1753550165542,2.31265,3727.8,3727.7,3.74416]
[1753550165748,1.7763,3727.8,3727.7,3.74416]
[1753550166647,1.7763,3727.8,3727.7,4.49166]
[1753550167548,1.7763,3727.8,3727.7,1.47476]
[1753550173641,2.31265,3727.8,3727.7,1.47476]
[1753550173850,1.7763,3727.8,3727.7,1.47476]
[1753550174651,2.31265,3727.8,3727.7,1.47476]
[1753550175348,1.7763,3727.8,3727.7,1.47476]
[1753550176253,2.31265,3727.8,3727.7,1.47476]
[1753550178753,1.7763,3727.8,3727.7,1.76816]
[1753550179449,1.478,3728.5,3728.4,1.02056]
[1753550179649,1.81564569,3728.5,3728.4,1.76806]
[1753550179850,1.0377,3728.5,3728.4,1.76806]
[1753550180152,0.6261,3728.5,3728.4,1.76806]
[1753550181956,0.6261,3728.5,3728.4,4.97586]
[1753550182957,1.0377,3728.5,3728.4,4.97586]
[1753550183952,0.7534,3728.7,3728.6,0.72713]
[1753550184149,0.313,3729.0,3728.8,0.7413]
[1753550184356,0.3131,3728.9,3728.8,1.2318]
[1753550184555,0.3131,3728.9,3728.8,4.9758]
[1753550184859,0.6261,3729.0,3728.9,1.76799]
[1753550185462,0.018,3729.3,3729.2,1.76795]
[1753550185752,0.513,3729.9,3729.8,0.53606]
[1753550185954,0.8261,3729.9,3729.8,1.76786]
[1753550187154,1.2377,3729.9,3729.8,1.76786]
[1753550189855,1.9775,3729.9,3729.8,0.9384]
[1753550190052,1.9775,3729.9,3729.8,1.49306]
[1753550190258,1.9775,3729.9,3729.8,1.80666]
[1753550193657,1.9775,3729.9,3729.8,1.49306]
[1753550194856,2.51355,3729.9,3729.8,1.28356]
[1753550195159,1.9775,3729.9,3729.8,1.28356]
[1753550196163,1.9775,3729.9,3729.8,1.49306]
[1753550196964,1.9775,3729.9,3729.8,1.80666]
[1753550198357,1.0277,3729.9,3729.8,1.80666]
[1753550198564,0.2,3729.9,3729.8,1.80666]
[1753550200962,1.4463,3730.6,3730.5,1.50266]
[1753550201163,1.7558,3730.6,3730.5,1.79766]
[1753550201363,1.7558,3730.6,3730.5,1.48406]
[1753550203265,1.7558,3730.6,3730.5,1.79766]
[1753550204467,0.3143,3730.6,3730.5,1.79766]
[1753550204662,1.132,3730.9,3730.8,1.04042]
[1753550204868,1.132,3730.9,3730.8,5.00542]
[1753550205163,1.016,3730.9,3730.8,5.00542]
[1753550205367,1.016,3731.2,3731.1,1.79757]
[1753550205771,1.4463,3731.2,3731.1,1.79757]
[1753550205970,1.016,3731.2,3731.1,1.79757]
[1753550206169,0.3143,3731.2,3731.1,1.79757]
[1753550206571,0.6104,3731.4,3731.3,1.04034]
[1753550206876,1.016,3731.4,3731.3,5.00534]
[1753550207071,1.4463,3731.4,3731.3,5.00534]
[1753550207277,1.7558,3731.4,3731.3,5.00534]
[1753550211072,1.016,3731.4,3731.3,5.00534]
[1753550211978,1.7558,3731.4,3731.3,5.00534]
[1753550213878,0.3143,3731.4,3731.3,5.00534]
[1753550216074,0.6104,3731.4,3731.3,5.00534]
[1753550216280,1.3255,3731.4,3731.3,5.00534]
[1753550216482,1.7558,3731.4,3731.3,5.00534]
[1753550218482,0.3143,3731.4,3731.3,5.00534]
[1753550218781,0.7141,3731.7,3731.6,1.7876]
[1753550218982,1.1453,3731.7,3731.6,1.7876]
[1753550219283,1.0001,3731.7,3731.6,1.7876]
[1753550219582,0.286,3731.7,3731.6,1.7876]
[1753550219781,0.2,3731.9,3731.8,1.32427]
[1753550219977,0.2,3731.9,3731.8,4.99537]
[1753550220674,1.9259,3731.9,3731.8,4.99537]
[1753550220872,1.9259,3731.9,3731.8,4.70177]
[1753550221482,1.9259,3731.9,3731.8,4.99537]
[1753550222177,1.2001,3731.9,3731.8,4.99537]
[1753550222679,0.486,3731.9,3731.8,4.99537]
[1753550222877,0.2,3731.9,3731.8,4.99537]
[1753550223384,0.7912,3731.9,3731.8,4.99537]
[1753550223582,1.6313,3731.9,3731.8,4.99537]
[1753550224283,1.9259,3731.9,3731.8,4.99537]
[1753550225278,1.2001,3731.9,3731.8,4.99537]
[1753550225483,0.2,3731.9,3731.8,4.99537]
[1753550226584,0.486,3731.9,3731.8,4.99537]
[1753550226985,1.2001,3731.9,3731.8,4.99537]
[1753550227888,1.2001,3731.9,3731.8,17.75637]
[1753550229484,0.9977,3731.9,3731.8,17.75637]
[1753550229685,1.9259,3731.9,3731.8,4.99537]
[1753550229984,1.9259,3731.9,3731.8,0.53577]
[1753550230578,1.43927,3731.9,3731.5,12.76]
[1753550230782,1.7259,3731.6,3731.3,3.6711]
[1753550230983,0.2,3731.9,3731.3,17.26034]
[1753550230984,1.7259,3731.4,3731.3,17.26034]
[1753550231883,1.7259,3731.4,3731.3,0.53584]
[1753550232281,1.7259,3731.4,3731.3,3.74364]
[1753550232885,1.0001,3731.4,3731.3,4.99544]
[1753550233380,1.7259,3731.4,3731.3,4.166]
[1753550233582,1.7259,3731.4,3731.3,3.2078]
[1753550233888,2.26173,3731.4,3731.3,3.2078]
[1753550234185,0.7035,3731.2,3731.1,12.76]
[1753550234490,0.53585,3731.3,3730.9,15.9678]
[1753550234491,1.7259,3731.0,3730.9,15.9678]
[1753550234788,1.7259,3731.0,3730.9,4.7019]
[1753550235181,1.7259,3731.0,3730.9,4.9955]
[1753550235376,1.7259,3731.0,3730.9,4.0371]
[1753550235576,1.7259,3731.0,3730.9,3.2078]
[1753550236290,1.7259,3731.0,3730.9,3.7437]
[1753550236787,1.7259,3731.0,3730.9,3.2078]
[1753550236987,1.7259,3731.0,3730.9,3.7437]
[1753550242487,1.7259,3731.0,3730.9,4.207]
[1753550242686,1.7259,3731.0,3730.9,4.5004]
[1753550244292,1.7259,3731.0,3730.9,4.7019]
[1753550245492,1.7259,3731.0,3730.9,4.9955]
[1753550246289,1.7259,3731.0,3730.9,4.7019]
[1753550248896,1.7259,3731.0,3730.9,4.9928]
[1753550249596,1.7259,3731.0,3730.9,1.785]
[1753550249795,1.7259,3731.0,3730.9,4.9928]
[1753550251298,1.7259,3731.0,3730.9,4.2361]
[1753550251493,1.7259,3731.0,3730.9,3.7437]
[1753550251790,1.7259,3731.0,3730.9,4.1913]
[1753550251996,1.7259,3731.0,3730.9,3.7437]
[1753550252696,1.7259,3731.0,3730.9,0.5359]
[1753550255492,1.7259,3731.0,3730.9,0.9835]
[1753550255693,1.7259,3731.0,3730.9,1.284]
[1753550255901,1.7259,3731.0,3730.9,1.4751]
[1753550257396,1.7259,3731.0,3730.9,0.5359]
[1753550257994,1.7259,3731.0,3730.9,0.51789999]
[1753550258897,1.7259,3731.0,3730.9,0.96549999]
[1753550259290,1.7259,3731.0,3730.9,0.51789999]
[1753550259897,1.7259,3731.0,3730.9,0.96549999]
[1753550260703,2.26179,3731.0,3730.9,0.9835]
[1753550262403,0.2,3731.9,3731.4,0.53583]
[1753550262404,3.4078,3731.9,3731.4,0.53583]
[1753550262596,3.4078,3731.9,3731.1,0.2909]
[1753550262597,1.7727,3731.5,3731.1,0.2909]
[1753550262802,2.30859,3731.0,3730.9,3.2078]
[1753550263002,0.7151,3730.6,3730.5,3.6994]
[1753550263203,1.7727,3730.6,3730.5,4.68296]
[1753550263401,1.7727,3730.6,3730.5,4.97386]
[1753550264196,1.4584,3730.6,3730.5,4.97386]
[1753550264396,0.989,3730.6,3730.5,4.97386]
[1753550265701,1.7727,3730.6,3730.5,4.97386]
[1753550266405,1.7727,3730.6,3730.5,0.9392]
[1753550266805,0.4008,3730.7,3730.6,0.9392]
[1753550267105,1.7727,3730.7,3730.6,1.47514]
[1753550267504,1.7727,3730.7,3730.6,1.76604]
[1753550268310,0.989,3730.7,3730.6,1.76604]
[1753550268701,0.7784,3730.7,3730.6,1.76604]
[1753550269100,0.2,3731.9,3731.3,0.53584]
[1753550269306,0.2,3731.9,3730.6,6.33985]
[1753550269307,0.9616,3731.9,3731.8,1.2301]
[1753550269504,1.56574625,3731.9,3731.8,1.76587]
[1753550270610,0.7882,3731.9,3731.8,1.2301]
[1753550271707,2.50846,3731.9,3731.8,1.2301]
[1753550272009,0.989,3731.4,3731.3,1.76594]
[1753550273706,1.7727,3731.4,3731.3,1.76594]
[1753550273907,0.989,3731.4,3731.3,1.76594]
[1753550274605,0.7784,3731.4,3731.3,1.76594]
[1753550275308,0.989,3731.4,3731.3,1.76594]
[1753550275511,1.4584,3731.4,3731.3,1.76594]
[1753550277307,0.989,3731.4,3731.3,1.76594]
[1753550277706,0.53587,3731.2,3731.0,3.2078]
[1753550277910,1.2922,3731.4,3731.3,0.82235]
[1753550278110,1.2922,3731.4,3731.3,1.27645]
[1753550278318,1.7508,3731.4,3731.3,1.47925]
[1753550279709,1.7508,3731.4,3731.3,0.9434]
[1753550280211,1.7508,3731.4,3731.3,1.47924]
[1753550281208,1.7508,3731.4,3731.3,1.76484]
[1753550283118,0.2867,3731.7,3731.6,1.7648]
[1753550283711,1.0054,3731.7,3731.6,1.7648]
[1753550286715,0.2,3731.9,3731.8,1.02508]
[1753550287016,3.2078,3732.9,3732.8,1.02494]
[1753550287208,5.12665003,3732.9,3732.8,1.76464]
[1753550287408,3.97835003,3732.9,3732.8,1.76464]
[1753550287817,4.26505003,3732.9,3732.8,1.76464]
[1753550288013,4.77655003,3732.9,3732.8,1.76464]
[1753550288216,1.77595003,3732.9,3732.8,1.76464]
[1753550288415,1.58015003,3732.9,3732.8,1.76464]
[1753550288922,1.58015003,3732.9,3732.8,4.97244]
[1753550290019,0.8096,3732.9,3732.8,4.97244]
[1753550290718,1.7508,3732.9,3732.8,4.97244]
[1753550291416,1.7508,3732.9,3732.8,1.76464]
[1753550292717,1.2922,3732.9,3732.8,4.97244]
[1753550292916,1.0054,3732.9,3732.8,4.97244]
[1753550293623,1.7508,3732.9,3732.8,4.97244]
[1753550294014,1.0054,3732.9,3732.8,4.97244]
[1753550295012,1.4641,3733.1,3733.0,1.76461]
[1753550295520,1.2922,3733.1,3733.0,1.76461]
[1753550295720,0.3157,3733.1,3733.0,1.76461]
[1753550295916,0.6024,3733.4,3733.3,1.76457]
[1753550296224,0.3157,3733.4,3733.3,1.76457]
[1753550296522,0.6024,3733.4,3733.3,1.76457]
[1753550296820,1.7508,3733.4,3733.3,0.7406]
[1753550297124,0.6898,3733.4,3733.3,0.53557]
[1753550297318,0.6898,3733.4,3733.3,1.47897]
[1753550297512,1.1484,3733.4,3733.3,1.76457]
[1753550297713,1.7508,3733.4,3733.3,1.76457]
[1753550299424,1.7508,3733.4,3733.3,1.47897]
[1753550299920,1.7508,3733.4,3733.2,3.2078]
[1753550299921,0.6898,3733.4,3733.2,3.2078]
[1753550300122,1.7508,3733.3,3733.2,3.74337]
[1753550300726,0.6898,3733.1,3733.0,0.5356]
[1753550300924,1.7508,3733.1,3733.0,0.5356]
[1753550301119,0.7453,3733.0,3732.7,0.4541]
[1753550301323,1.7508,3732.7,3732.6,4.68686]
[1753550301523,1.7508,3732.7,3732.6,4.97246]
[1753550301724,1.0054,3732.7,3732.6,4.97246]
[1753550302225,1.7508,3732.7,3732.6,4.97246]
[1753550302529,1.7508,3732.7,3732.6,0.53566]
[1753550303327,1.7508,3732.7,3732.5,0.53568]
[1753550303626,1.7508,3732.7,3732.6,0.53567]
[1753550303829,1.7508,3732.7,3732.2,3.4934]
[1753550303830,0.6898,3732.3,3732.2,3.2078]
[1753550304030,1.7508,3732.3,3732.2,3.74352]
[1753550304634,1.7508,3732.3,3732.2,0.53572]
[1753550305328,1.7508,3732.3,3732.2,1.27632]
[1753550305727,1.061,3732.2,3731.8,3.2078]
[1753550305933,1.7508,3731.9,3731.8,4.97258]
[1753550306124,1.2922,3731.9,3731.8,4.97258]
[1753550306326,1.7508,3731.9,3731.8,4.48418]
[1753550306626,1.7508,3731.9,3731.8,4.68698]
[1753550307431,1.7508,3731.9,3731.8,4.03008]
[1753550307627,1.7508,3731.9,3731.8,3.2078]
[1753550307931,1.7169,3731.5,3731.4,3.74364]
[1753550308132,1.7169,3731.5,3731.4,4.71694]
[1753550309526,1.7169,3731.5,3731.4,3.74364]
[1753550309934,1.7169,3731.5,3731.4,4.71694]
[1753550310527,1.7169,3731.5,3731.4,3.2078]
[1753550310728,2.25272,3731.5,3731.4,2.8913]
[1753550311230,1.7169,3731.5,3731.4,2.8913]
[1753550311735,2.25272,3731.5,3731.4,2.8913]
[1753550312137,1.7169,3731.5,3731.4,2.8913]
[1753550313132,1.7169,3731.5,3731.4,3.42714]
[1753550317435,1.7169,3731.5,3731.4,5.18304]
[1753550317635,1.7169,3731.5,3731.4,4.59234]
[1753550318137,1.7169,3731.5,3731.4,4.40044]
[1753550321832,0.116,3732.5,3731.4,4.40044]
[1753550321833,0.2854,3732.2,3731.8,0.3047]
[1753550322026,1.4229,3732.2,3732.1,2.29164]
[1753550322432,0.5065,3732.2,3732.1,2.29164]
[1753550322636,0.21743729,3733.0,3731.8,3.2078]
[1753550322637,0.8261,3732.6,3732.5,0.7029]
[1753550322832,1.1201,3732.6,3732.5,1.82928]
[1753550323039,1.1201,3732.6,3732.5,2.29158]
[1753550323241,1.7169,3732.6,3732.5,2.29158]
[1753550326040,1.7169,3732.6,3732.5,1.98688]
[1753550326242,1.7169,3732.6,3732.5,1.70088]
[1753550327241,1.7169,3732.6,3732.5,2.29158]
[1753550327741,0.8261,3732.8,3732.7,1.23855]
[1753550327942,1.4229,3732.8,3732.7,2.29155]
[1753550328540,1.7169,3732.8,3732.7,2.29155]
[1753550329443,1.7169,3732.8,3732.7,1.98685]
[1753550330041,1.7169,3732.8,3732.7,1.70085]
[1753550330737,0.7211,3732.7,3732.5,0.7483]
[1753550330942,0.6844,3732.6,3732.5,1.30408]
[1753550331144,1.7169,3732.6,3732.5,1.30408]
[1753550331938,0.9698,3732.6,3732.3,0.4623]
[1753550332240,1.7169,3732.0,3731.9,2.29167]
[1753550333249,1.7169,3732.0,3731.9,1.98697]
[1753550333443,2.25265,3732.0,3731.9,1.98697]
[1753550333743,2.25265,3732.0,3731.9,1.4512]
[1753550334142,1.7169,3732.0,3731.9,1.4512]
[1753550334344,1.7169,3732.0,3731.9,1.98697]
[1753550334541,1.7169,3732.0,3731.9,2.29167]
[1753550334844,2.25265,3732.0,3731.9,2.29167]
[1753550335046,2.25265,3732.0,3731.9,1.7559]
[1753550335243,2.25265,3732.0,3731.9,1.1652]
[1753550335644,2.25669357,3732.0,3731.9,1.1652]
[1753550336641,2.25669357,3732.0,3731.9,0.9733]
[1753550336837,1.56832,3731.6,3731.4,4.20593]
[1753550337046,1.7169,3731.5,3731.4,5.03723]
[1753550337535,1.7169,3731.5,3731.4,5.47003]
[1753550348751,0.9872,3731.5,3731.4,5.47003]
[1753550350058,1.4393,3731.5,3731.4,5.47003]
[1753550351260,1.7367,3731.5,3731.4,5.47003]
[1753550351951,2.27252,3731.5,3731.4,4.6295]
[1753550352157,1.7367,3731.5,3731.4,4.97344]
[1753550352357,1.7367,3731.5,3731.4,4.68744]
[1753550352663,1.7367,3731.5,3731.4,4.48254]
[1753550353162,1.7367,3731.5,3731.4,5.49804]
[1753550355665,0.3114,3731.5,3731.4,5.49804]
[1753550355861,1.008,3731.5,3731.4,5.49804]
[1753550356260,1.7575,3731.5,3731.4,5.49804]
[1753550356961,0.00404357,3732.0,3731.9,0.96857]
[1753550357166,0.00404357,3732.0,3731.9,5.50467]
[1753550368879,0.00404357,3732.0,3731.9,10.50467]
[1753550370176,0.296,3732.3,3732.2,2.29222]
[1753550371173,0.5875,3732.3,3732.2,2.29222]
[1753550374581,1.2574,3732.5,3732.4,2.29219]
[1753550374781,0.8053,3732.5,3732.4,5.49999]
[1753550375282,0.9986,3732.5,3732.4,5.49999]
[1753550375475,0.53558,3733.2,3732.9,0.53561]
[1753550375678,0.6967,3733.0,3732.9,1.79461]
[1753550375982,0.6967,3733.0,3732.9,0.53561]
[1753550376183,1.7191,3733.0,3732.9,0.53561]
[1753550376378,1.7191,3733.0,3732.9,0.97801]
[1753550377883,1.7191,3733.0,3732.9,0.97802]
[1753550378071,1.7191,3733.0,3732.4,3.6502]
[1753550378072,0.6967,3732.5,3732.4,3.6502]
[1753550378276,1.7191,3732.5,3732.4,3.74349]
[1753550378679,1.7191,3732.5,3732.4,3.2078]
[1753550378880,1.7191,3732.5,3732.4,3.74349]
[1753550380779,1.7191,3732.5,3732.4,3.2078]
[1753550380979,1.7191,3732.5,3732.4,3.74349]
[1753550382284,1.7191,3732.5,3732.4,4.69379]
[1753550382478,1.7191,3732.5,3732.4,5.00249]
[1753550383274,1.7191,3732.5,3732.4,5.49999]
[1753550384888,1.7191,3732.5,3732.4,5.20879]
[1753550386082,1.7191,3732.5,3732.4,4.50029]
[1753550386481,1.7191,3732.5,3732.4,5.20879]
[1753550386680,0.9986,3732.5,3732.4,5.49999]
[1753550387583,0.3032,3732.5,3732.4,5.49999]
[1753550390289,0.5947,3732.5,3732.4,5.49999]
[1753550391298,1.7191,3732.5,3732.4,5.49999]
[1753550393696,0.6967,3732.5,3732.3,0.5357]
[1753550393898,1.7191,3732.4,3732.3,0.5357]
[1753550394299,1.7191,3732.4,3732.3,1.2925]
[1753550394500,1.7191,3732.4,3732.3,2.001]
[1753550398003,1.7191,3732.4,3732.3,1.6923]
[1753550398304,1.7191,3732.4,3732.3,1.486]
[1753550399706,0.6931,3732.3,3732.2,0.53572]
[1753550400301,1.4573,3732.3,3732.2,0.53572]
[1753550400503,1.7538,3732.3,3732.2,0.53572]
[1753550403409,0.6931,3732.1,3732.0,3.2078]
[1753550403710,1.4573,3731.7,3731.6,3.7436]
[1753550404009,1.7538,3731.7,3731.6,3.7436]
[1753550404711,1.7538,3731.7,3731.6,4.2158]
[1753550405009,1.7538,3731.7,3731.6,4.7368]
[1753550410620,1.7538,3731.7,3731.6,5.0394]
[1753550411621,1.7538,3731.7,3731.6,5.2364]
[1753550412423,1.7538,3731.7,3731.6,5.5506]
[1753550414018,1.002,3732.1,3732.0,2.34275]
[1753550414519,1.4666,3732.1,3732.0,2.34275]
[1753550414717,1.7538,3732.1,3732.0,2.34275]
[1753550415118,1.4666,3732.1,3732.0,2.34275]
[1753550415319,1.1577,3732.5,3732.4,1.25369]
[1753550415519,1.1577,3732.5,3732.4,2.34269]
[1753550415920,2.52406789,3732.5,3732.4,2.34269]
[1753550417525,2.52406789,3732.5,3732.4,2.02849]
[1753550418224,2.52406789,3732.5,3732.4,2.34269]
[1753550418626,1.7538,3732.5,3732.4,2.34269]
[1753550418925,1.4666,3732.5,3732.4,2.34269]
[1753550419523,1.7538,3732.5,3732.4,2.34269]
[1753550420523,1.002,3732.5,3732.4,2.34269]
[1753550420922,0.5961,3732.5,3732.4,2.34269]
[1753550421130,0.6931,3733.2,3733.1,0.53559]
[1753550421323,0.6931,3733.2,3733.1,1.31899]
[1753550421630,0.6931,3733.2,3732.9,0.3026]
[1753550421631,1.7538,3733.0,3732.9,0.53562]
[1753550421829,2.52404352,3733.0,3732.9,0.53562]
[1753550422629,2.52404352,3733.0,3732.9,1.00782]
[1753550423031,2.52404352,3733.0,3732.9,1.31902]
[1753550424027,1.7538,3733.0,3732.9,1.52882]
[1753550424231,1.7538,3733.0,3732.9,1.83142]
[1753550425433,1.7538,3733.0,3732.9,1.52882]
[1753550426034,1.7538,3733.0,3732.9,2.34262]
[1753550427130,1.7538,3733.0,3732.9,1.72582]
[1753550427324,1.7538,3733.0,3732.9,1.52882]
[1753550428330,0.6023,3733.7,3733.6,1.24992]
[1753550428533,0.4393,3734.0,3733.8,0.7144]
[1753550428834,1.1969,3733.9,3733.8,2.27379]
[1753550430425,1.73238,3733.9,3733.8,1.7383]
[1753550430628,7.02798,3733.9,3733.8,0.7357]
[1753550430828,1.2445,3733.3,3733.2,1.05148]
[1753550431035,1.2445,3733.3,3733.2,1.78858]
[1753550431630,1.7318,3733.3,3733.2,2.27388]
[1753550434839,0.9969,3733.3,3733.2,2.27388]
[1753550437446,0.9969,3733.6,3733.5,2.27384]
[1753550437631,1.4362,3733.6,3733.5,2.27384]
[1753550437837,1.7318,3733.6,3733.5,2.27384]
[1753550438141,1.7318,3733.6,3733.5,1.7383]
[1753550438741,0.6023,3733.6,3733.5,2.27384]
[1753550438942,1.4362,3733.6,3733.5,2.27384]
[1753550439245,1.7318,3733.6,3733.5,2.27384]
[1753550442346,1.4362,3733.6,3733.5,2.27384]
[1753550442746,1.7318,3733.6,3733.5,2.27384]
[1753550447150,1.7318,3733.6,3733.5,1.98704]
[1753550448051,1.0339,3733.9,3733.8,2.27379]
[1753550448245,1.9318,3733.9,3733.8,1.7383]
[1753550448445,0.6902,3733.6,3733.5,0.96364]
[1753550448752,1.7318,3733.6,3733.5,1.98704]
[1753550449049,1.7318,3733.6,3733.5,2.27384]
[1753550450055,1.6362,3733.9,3733.8,1.55889]
[1753550450246,1.6362,3733.9,3733.8,2.27379]
[1753550451352,0.2,3733.9,3733.8,2.27379]
[1753550452150,0.6023,3734.4,3734.3,2.27372]
[1753550452348,0.7936,3734.4,3734.3,2.27372]
[1753550453154,0.4873,3734.4,3734.3,2.27372]
[1753550453455,0.296,3734.4,3734.3,2.27372]
[1753550453657,1.97154,3734.9,3734.8,1.7383]
[1753550453947,2.26714,3734.9,3734.8,1.4515]
[1753550454449,2.26714,3734.9,3734.8,0.7357]
[1753550456360,1.7318,3734.9,3734.8,0.7357]
[1753550456551,1.7318,3734.9,3734.8,1.27105]
[1753550457959,1.7318,3734.9,3734.8,4.47885]
[1753550463960,1.7318,3734.9,3734.8,1.27105]
[1753550465255,1.0416,3734.9,3734.8,0.96345]